bitfinex/quotes_ETHUSD_20241101
["timestamp","ask_amount","ask_price","bid_price","bid_amount"]
[1730426723695,0.901,2489.5,2488.0,0.005]
[1730426723845,0.01,2489.0,2488.8,0.8844]
[1730426724043,0.896,2490.2,2488.8,0.8844]
[1730426724044,0.01,2489.6,2489.4,4.0169]
[1730426724276,0.01,2489.6,2489.5,4.01687]
[1730426724456,0.01,2490.0,2489.9,4.01622]
[1730426724654,0.01,2490.3,2489.9,4.01622]
[1730426724886,0.01,2490.1,2489.9,4.01622]
[1730426725187,0.005,2490.4,2489.9,4.01622]
[1730426725188,4.01509,2490.6,2489.9,1.56280148]
[1730426725489,0.01,2490.5,2489.9,4.90058]
[1730426725785,0.01,2490.5,2490.0,4.01605]
[1730426725988,0.01,2490.2,2490.0,4.01605]
[1730426726142,0.005,2490.4,2489.8,4.01631]
[1730426726344,0.005,2490.4,2490.0,4.01604]
[1730426726608,0.5548,2490.7,2489.0,5.48540964]
[1730426726609,0.005,2490.2,2489.0,5.48540964]
[1730426726900,0.005,2490.2,2489.9,4.01608]
[1730426727083,0.005,2490.6,2490.0,4.016]
[1730426727284,1.4713,2490.7,2490.1,4.01588]
[1730426727487,1.4713,2490.7,2490.2,4.01573]
[1730426727792,1.4713,2490.7,2489.1,3.005]
[1730426727793,0.5548,2490.7,2490.3,4.01546]
[1730426727965,0.5548,2490.7,2490.6,4.01509]
[1730426728564,0.5548,2490.7,2490.6,5.704211]
[1730426728980,0.5548,2490.7,2490.6,6.254211]
[1730426729181,0.005,2492.1,2491.6,4.01347]
[1730426729350,0.005,2492.1,2490.9,4.01454]
[1730426729550,0.005,2492.1,2491.6,4.01336]
[1730426730305,0.005,2491.9,2491.2,4.01406]
[1730426730448,0.005,2491.7,2491.1,4.01415]
[1730426730642,0.005,2491.3,2490.7,4.01486]
[1730426731089,0.005,2491.3,2490.6,0.8861]
[1730426731287,4.91677,2491.5,2489.6,8.62016964]
[1730426731288,0.005,2491.0,2490.1,4.01582]
[1730426731490,0.005,2491.0,2490.3,4.01554]
[1730426731876,0.005,2491.0,2490.1,4.01586]
[1730426732050,0.005,2491.0,2490.2,4.01569]
[1730426732051,4.01949,2491.0,2490.2,4.01569]
[1730426732253,0.005,2491.0,2490.3,4.01545]
[1730426732446,0.005,2490.7,2489.9,0.8861]
[1730426732649,0.005,2490.7,2490.2,4.01564]
[1730426732954,0.005,2490.3,2489.6,4.0167]
[1730426733191,0.005,2490.3,2489.8,4.01636]
[1730426733492,0.005,2490.0,2489.3,4.01715]
[1730426733696,7.01504,2490.7,2488.5,4.01837]
[1730426733697,0.005,2489.2,2488.5,4.01837]
[1730426734009,0.005,2488.5,2487.8,4.01958]
[1730426734156,4.01815,2488.8,2487.7,4.95792]
[1730426734157,0.005,2488.3,2487.7,4.01977]
[1730426734354,0.005,2488.3,2488.0,4.01929]
[1730426734697,5.03641,2489.0,2488.3,4.01879]
[1730426734698,0.005,2488.7,2488.3,4.01879]
[1730426734898,0.005,2488.9,2488.4,4.09895992]
[1730426735103,0.005,2488.9,2488.5,4.01845]
[1730426735285,0.005,2489.4,2488.9,4.01777]
[1730426735612,1.0087,2489.5,2488.1,4.01897]
[1730426735613,0.005,2488.9,2488.1,4.01897]
[1730426735816,1.0137,2488.5,2488.4,4.01864]
[1730426735980,0.01,2489.1,2487.6,4.01979]
[1730426735981,0.005,2489.0,2488.7,4.01803]
[1730426736320,0.005,2489.3,2488.8,4.01799]
[1730426736610,0.005,2489.3,2488.9,0.02999631]
[1730426736825,0.005,2489.3,2488.9,4.01779]
[1730426736984,0.005,2488.9,2488.3,4.01868]
[1730426737189,0.005,2488.6,2488.0,4.01914]
[1730426737398,0.005,2488.8,2487.5,4.02002]
[1730426737713,1.0187,2489.5,2488.5,4.01845]
[1730426737714,0.005,2489.0,2488.5,4.01845]
[1730426737870,0.005,2489.0,2488.6,0.08035348]
[1730426738077,0.005,2489.0,2488.3,4.0188]
[1730426738271,0.005,2488.7,2488.0,4.01927]
[1730426738711,0.005,2488.7,2488.1,4.01906]
[1730426739097,0.005,2488.9,2488.3,4.01868]
[1730426739285,0.005,2489.1,2488.3,4.01868]
[1730426739473,0.005,2489.1,2488.6,4.01821]
[1730426739695,0.005,2489.1,2488.8,4.01788]
[1730426740009,0.005,2489.3,2488.9,4.09816737]
[1730426740215,0.005,2489.3,2489.0,4.01766]
[1730426740413,0.005,2489.1,2488.1,0.401906]
[1730426740589,0.005,2489.1,2488.6,4.01821]
[1730426740783,0.005,2488.9,2488.5,4.01848]
[1730426740987,0.005,2488.9,2488.3,4.01876]
[1730426741406,0.005,2489.3,2487.7,5.04074]
[1730426741714,0.005,2489.3,2488.7,4.01812]
[1730426742076,4.02385,2488.3,2487.5,4.01996]
[1730426742409,0.005,2487.5,2487.1,4.02063]
[1730426743622,0.005,2487.5,2487.2,4.02055]
[1730426744034,0.005,2488.1,2487.5,4.01997]
[1730426744198,4.02006,2487.6,2486.8,4.57107]
[1730426744406,0.005,2487.7,2487.0,4.02089]
[1730426744612,0.005,2487.7,2486.9,0.559127]
[1730426744613,0.005,2487.8,2487.3,4.02041]
[1730426744998,0.005,2487.6,2487.0,4.02084]
[1730426745210,0.005,2487.4,2487.3,4.02042]
[1730426745622,0.9564,2488.2,2487.3,0.804101]
[1730426745839,4.01737,2489.2,2487.3,0.804101]
[1730426745840,4.01893,2488.3,2487.3,0.9876]
[1730426746123,0.005,2487.9,2487.3,4.02031]
[1730426746431,0.005,2487.9,2487.4,4.02024]
[1730426746729,0.005,2488.4,2488.0,4.01927]
[1730426746887,0.005,2488.4,2488.1,4.01899]
[1730426747086,0.9351,2488.6,2488.2,4.01885]
[1730426747329,0.9301,2488.6,2488.4,4.01852]
[1730426747635,0.005,2488.8,2488.5,4.01848]
[1730426747805,0.005,2488.8,2488.4,4.01852]
[1730426749506,0.005,2489.0,2488.6,4.01831]
[1730426750028,0.005,2489.0,2488.4,4.01859]
[1730426750029,0.005,2489.0,2488.4,4.01858]
[1730426750188,0.005,2489.0,2488.4,4.01851]
[1730426750394,0.005,2489.2,2488.7,4.01815]
[1730426750637,0.005,2488.9,2488.5,4.01842]
[1730426750845,0.005,2488.7,2488.4,4.01857]
[1730426751024,0.005,2488.9,2488.4,4.01851]
[1730426751241,0.9983,2491.1,2489.8,0.55]
[1730426751445,0.36180974,2491.0,2490.9,4.01461]
[1730426751644,4.01311,2491.9,2491.1,4.01418]
[1730426751871,4.847672,2491.9,2491.1,4.01418]
[1730426752012,4.847682,2491.9,2491.1,4.01424]
[1730426752211,5.01115,2492.0,2491.3,4.01393]
[1730426752460,1.08255321,2492.0,2491.4,0.0802682]
[1730426752612,1.08255321,2492.0,2491.1,4.01424]
[1730426752613,1.08255321,2492.0,2491.2,4.01397]
[1730426752816,1.08255321,2492.0,2491.3,4.01395]
[1730426753134,4.01312,2491.9,2491.0,4.01438]
[1730426753335,4.01316,2491.8,2491.0,4.01438]
[1730426753541,4.01302,2491.9,2491.0,4.01438]
[1730426753743,4.01331,2491.8,2491.0,4.01445]
[1730426753945,5.09547321,2492.0,2491.0,4.01445]
[1730426754153,4.01303,2491.9,2491.0,4.01445]
[1730426754384,5.09547321,2492.0,2491.0,4.01445]
[1730426754563,4.01316,2491.8,2491.0,4.01445]
[1730426754854,4.01312,2491.9,2491.0,4.01444]
[1730426755349,5.09547321,2492.0,2490.9,0.08026862]
[1730426755350,4.01321,2491.8,2490.9,0.08026862]
[1730426755555,4.01306,2491.9,2491.1,4.01425]
[1730426755856,1.08255321,2492.0,2491.1,4.01414]
[1730426756025,1.08255321,2492.0,2491.2,4.01412]
[1730426756226,1.08255321,2492.0,2491.4,4.0138]
[1730426756448,1.08255321,2492.0,2491.2,4.01412]
[1730426756753,4.01317,2491.8,2491.0,4.01439]
[1730426756956,0.9983,2492.0,2491.0,4.02439]
[1730426757123,4.01312,2491.9,2491.1,4.01428]
[1730426757323,4.01319,2491.8,2490.9,4.01461]
[1730426757536,4.01319,2491.8,2491.0,4.02442]
[1730426757957,0.9983,2492.0,2491.0,0.01]
[1730426758199,0.9983,2492.0,2491.3,4.01382]
[1730426758401,5.01114,2492.0,2491.0,4.01443]
[1730426758600,0.9983,2492.0,2490.5,4.02524]
[1730426758891,4.01343,2491.7,2490.7,4.01478]
[1730426759108,4.0138,2491.4,2490.8,0.08028437]
[1730426759646,4.01365,2491.5,2490.8,0.08028437]
[1730426759881,4.01382,2491.4,2490.6,4.01497]
[1730426760089,4.01382,2491.4,2490.5,4.02521]
[1730426760090,4.01395,2491.4,2490.5,4.02521]
[1730426760258,4.01345,2491.7,2490.8,4.01474]
[1730426760460,4.01332,2491.7,2490.9,0.01]
[1730426760660,5.01121,2492.0,2490.9,0.01]
[1730426760875,4.01346,2491.7,2490.9,0.01]
[1730426761293,0.9983,2492.0,2490.4,3.65694592]
[1730426761294,4.01407,2491.3,2490.5,0.01]
[1730426761589,4.01352,2491.6,2490.6,4.02494]
[1730426761793,4.01379,2491.5,2490.6,4.01494]
[1730426762087,4.01352,2491.6,2490.7,4.02489]
[1730426762088,4.01381,2491.4,2490.7,4.02489]
[1730426762492,4.01321,2491.8,2490.8,4.01465]
[1730426762696,4.01337,2491.7,2490.8,8.02931]
[1730426762846,4.01335,2491.7,2491.0,4.01445]
[1730426763053,4.01335,2491.7,2490.8,4.01465]
[1730426763377,4.01365,2491.5,2490.8,4.01465]
[1730426763695,4.01346,2491.7,2490.8,4.01465]
[1730426763865,4.01303,2491.9,2491.0,4.01444]
[1730426764201,0.9983,2492.0,2491.3,4.02382]
[1730426764350,0.9983,2492.0,2491.7,4.01326]
[1730426764559,0.9983,2492.0,2491.6,4.01338]
[1730426764877,0.121345,2492.3,2491.7,0.02254892]
[1730426765051,4.01281,2492.1,2491.7,0.08675801]
[1730426765251,4.01258,2492.2,2491.7,0.01]
[1730426765500,0.121345,2492.3,2491.7,4.02331]
[1730426766012,4.01262,2492.2,2491.4,0.01]
[1730426766157,4.01272,2492.1,2491.4,0.01]
[1730426766356,4.01262,2492.2,2491.5,4.01364]
[1730426766560,4.01262,2492.2,2491.0,0.9462]
[1730426766561,4.01654,2489.7,2489.6,0.81771826]
[1730426766767,9.72142681,2491.4,2488.5,0.01]
[1730426766768,4.01757,2489.1,2488.5,0.01]
[1730426766997,4.01757,2489.1,2488.4,2.0588374]
[1730426766998,3.65694592,2489.1,2488.4,2.0588374]
[1730426767207,4.01829,2488.7,2488.4,2.0588374]
[1730426767418,4.01848,2488.5,2488.4,2.0588374]
[1730426767977,4.01801,2488.8,2488.4,2.0588374]
[1730426768194,7.01778,2489.0,2488.4,2.0588374]
[1730426768373,4.01677,2489.6,2488.4,2.0588374]
[1730426768374,4.0183,2488.7,2488.4,2.0588374]
[1730426768577,4.01756,2489.1,2488.4,2.0588374]
[1730426768801,4.01797,2488.9,2488.4,2.0588374]
[1730426769102,4.01848,2488.5,2488.4,2.0588374]
[1730426769906,0.3748,2488.8,2488.4,2.0588374]
[1730426770105,4.01724,2489.3,2488.5,0.20588374]
[1730426770466,4.0167,2489.7,2488.9,4.01782]
[1730426770662,0.3748,2490.0,2488.5,0.01]
[1730426770867,4.39093,2490.0,2488.8,0.01]
[1730426771070,4.39087,2490.0,2489.2,4.01733]
[1730426771270,4.39087,2490.0,2489.1,0.01]
[1730426771511,4.39087,2490.0,2487.2,4.02057]
[1730426771512,4.01719,2489.3,2488.6,0.01]
[1730426771664,4.01782,2489.0,2488.3,0.01]
[1730426771864,4.01741,2489.2,2488.3,0.01]
[1730426772068,4.01741,2489.2,2488.4,0.9679]
[1730426772313,4.01702,2489.5,2488.6,4.0283]
[1730426772615,0.3748,2490.0,2489.3,0.01]
[1730426772820,4.0159,2490.2,2489.3,0.01]
[1730426772821,4.0159,2490.2,2489.4,4.01698]
[1730426773113,4.01547,2490.4,2489.5,0.08032448]
[1730426773281,4.01558,2490.3,2489.4,4.02698]
[1730426773481,4.01558,2490.3,2489.4,0.01]
[1730426773698,4.0159,2490.1,2489.4,0.01]
[1730426774101,4.01566,2490.3,2489.4,4.02702]
[1730426774285,4.01556,2490.4,2489.5,0.06880188]
[1730426774579,4.01556,2490.4,2489.6,4.0167]
[1730426774782,0.3748,2490.5,2489.7,4.01652]
[1730426774783,4.39006,2490.5,2489.7,4.01652]
[1730426775127,4.64333682,2490.7,2489.9,0.01]
[1730426775411,4.01553,2490.4,2489.7,0.01]
[1730426775771,4.01509,2490.6,2489.8,4.01623]
[1730426776196,4.01543,2490.4,2489.7,0.01]
[1730426776409,4.01475,2490.9,2489.9,4.0161]
[1730426776581,4.01511,2490.6,2489.8,4.01638]
[1730426776987,4.01477,2490.8,2489.4,0.01]
[1730426777290,4.01555,2490.4,2489.6,4.02655]
[1730426777488,4.01477,2490.8,2489.6,0.01]
[1730426777489,4.01513,2490.6,2489.6,0.01]
[1730426777800,4.01602,2490.1,2489.3,0.9719]
[1730426778131,4.01627,2489.9,2489.3,0.9719]
[1730426778412,4.01656,2489.7,2488.9,0.9625]
[1730426778582,4.01738,2489.2,2488.5,4.98092]
[1730426778767,4.01738,2489.2,2488.3,4.01876]
[1730426778768,4.01772,2489.0,2488.3,4.01876]
[1730426778971,4.01804,2488.8,2488.2,0.01]
[1730426779642,4.0188,2488.3,2486.5,0.9365]
[1730426779778,4.95905317,2488.4,2486.2,4.02218]
[1730426779779,4.02095,2487.0,2486.2,4.02218]
[1730426779976,7.02017,2487.5,2486.0,0.9365]
[1730426779977,4.02126,2486.8,2486.0,0.9465]
[1730426780285,0.3748,2487.2,2485.7,4.03294]
[1730426780523,4.02155,2486.6,2485.7,4.023]
[1730426780906,4.02085,2487.1,2486.3,4.02191]
[1730426781105,4.02085,2487.1,2486.3,4.02199]
[1730426781278,4.02085,2487.1,2485.7,4.02296]
[1730426781279,4.02116,2486.9,2486.1,4.02234]
[1730426781475,0.3748,2487.2,2486.2,0.02]
[1730426781476,4.02095,2487.0,2486.2,0.02]
[1730426781680,4.02095,2487.0,2486.2,4.04207]
[1730426781932,4.02095,2487.0,2486.2,4.03218]
[1730426782218,4.02097,2487.0,2486.2,4.03218]
[1730426782388,4.02097,2487.0,2486.2,4.04218]
[1730426782599,0.3748,2488.0,2486.8,0.01]
[1730426782798,4.39411,2488.0,2487.1,4.03073]
[1730426783032,4.01987,2487.7,2486.9,4.04103]
[1730426783180,4.01951,2487.9,2487.0,4.02089]
[1730426783384,4.01964,2487.8,2487.0,4.02089]
[1730426783628,4.01951,2487.9,2486.9,4.04103]
[1730426783780,0.3748,2488.0,2487.3,4.0204]
[1730426783981,4.58425317,2489.0,2487.3,4.0204]
[1730426783982,4.39282,2488.8,2487.9,4.0194]
[1730426784223,4.39282,2488.8,2487.8,4.01947]
[1730426784224,4.39282,2488.8,2488.0,0.08406446]
[1730426784382,0.3748,2488.8,2488.2,4.02887]
[1730426784583,4.01768,2489.0,2488.0,4.03915]
[1730426784782,4.01742,2489.2,2488.2,0.02]
[1730426784984,0.3748,2489.5,2488.7,4.01801]
[1730426785219,0.3748,2489.5,2488.7,4.01802]
[1730426785417,0.3748,2489.5,2488.8,4.01791]
[1730426785589,4.01565,2490.3,2488.8,4.01791]
[1730426785590,4.0156,2490.3,2489.1,0.01]
[1730426785927,0.3748,2490.8,2488.3,5.00782]
[1730426785928,4.0163,2489.9,2488.9,4.01771]
[1730426786322,4.3907,2490.1,2489.0,4.01764]
[1730426786496,4.01532,2490.5,2489.3,4.02718]
[1730426786693,0.3748,2490.6,2489.5,0.01]
[1730426786882,4.01538,2490.5,2489.4,4.017]
[1730426787083,0.3748,2490.6,2489.5,4.02686]
[1730426787282,0.3748,2490.6,2489.6,4.01658]
[1730426787712,4.3899,2490.6,2489.6,4.01658]
[1730426787913,4.3899,2490.6,2489.3,0.9991]
[1730426787914,4.01545,2490.4,2489.4,0.01]
[1730426788128,4.01653,2489.8,2488.9,0.9891]
[1730426788309,4.01747,2489.2,2488.1,4.03903]
[1730426788513,4.01747,2489.2,2488.1,0.01]
[1730426788715,4.01751,2489.2,2487.9,0.01]
[1730426789031,4.58425317,2490.3,2486.7,4.58425317]
[1730426789032,4.01864,2488.5,2486.7,8.60556317]
[1730426789231,4.01864,2488.5,2485.7,0.82911324]
[1730426789232,4.01941,2488.0,2486.9,4.02104]
[1730426789389,4.01947,2487.9,2486.9,4.02104]
[1730426789584,3.0,2488.1,2487.2,4.02057]
[1730426789784,4.01944,2488.0,2487.0,4.02089]
[1730426790023,3.0,2488.1,2487.0,4.02089]
[1730426790224,4.95623,2488.0,2487.0,4.02089]
[1730426790612,4.01956,2487.9,2486.8,4.02117]
[1730426790809,4.01961,2487.8,2486.8,4.02117]
[1730426791333,4.0201,2487.5,2486.7,4.02138]
[1730426791633,4.01945,2487.9,2487.0,4.02079]
[1730426791971,4.01945,2487.9,2487.0,4.10119868]
[1730426792127,4.01963,2487.8,2486.9,4.02106]
[1730426792423,4.01945,2487.9,2487.0,4.02089]
[1730426792626,4.01945,2487.9,2486.9,4.02106]
[1730426793129,4.02013,2487.5,2486.7,4.99387]
[1730426793427,4.02013,2487.5,2486.6,4.02152]
[1730426793627,4.01985,2487.7,2486.8,4.02115]
[1730426793828,4.01949,2487.9,2487.0,4.02085]
[1730426794335,4.01949,2487.9,2487.1,4.02074]
[1730426794630,4.01949,2487.9,2487.0,4.02085]
[1730426794631,4.01964,2487.8,2487.0,4.02085]
[1730426794803,4.01949,2487.9,2487.1,4.02073]
[1730426795001,0.9368,2488.0,2486.8,4.0212]
[1730426795201,4.01961,2487.8,2486.1,1.0146]
[1730426795389,4.0205,2487.3,2486.2,0.63040783]
[1730426795590,0.9368,2488.0,2486.2,0.63040783]
[1730426795591,4.02006,2487.6,2486.9,4.02092]
[1730426795831,5.02738,2488.4,2487.1,1.0718]
[1730426796028,4.0191,2488.2,2487.3,4.02028]
[1730426796277,1.0086,2488.4,2487.1,1.0718]
[1730426796278,4.01945,2488.0,2487.1,1.0718]
[1730426796426,4.01945,2488.0,2487.2,4.02058]
[1730426796627,5.02726,2488.4,2487.6,4.01987]
[1730426796861,1.0086,2488.4,2487.6,4.01989]
[1730426797072,4.01834,2488.6,2487.9,4.01932]
[1730426797578,5.02664,2488.8,2488.1,4.01897]
[1730426798075,5.02674,2488.8,2488.1,4.01897]
[1730426798239,1.0086,2488.8,2488.3,4.01877]
[1730426798432,5.0743,2489.2,2488.5,4.01836]
[1730426798629,1.0569,2489.2,2488.5,4.01836]
[1730426798854,1.0569,2489.2,2488.7,4.01814]
[1730426799064,1.0569,2489.2,2488.5,4.01836]
[1730426799065,5.0744,2489.2,2488.5,4.01836]
[1730426799498,4.01706,2489.4,2488.5,4.01836]
[1730426799639,4.01706,2489.4,2488.7,4.01813]
[1730426800038,4.01706,2489.4,2488.8,4.01799]
[1730426800341,5.06735,2489.6,2489.0,4.01767]
[1730426800666,5.06735,2489.6,2488.8,4.01786]
[1730426801040,4.01695,2489.5,2488.8,4.01786]
[1730426801284,5.06735,2489.6,2487.9,1.0081]
[1730426801285,4.01774,2489.0,2487.9,1.0081]
[1730426801572,4.01782,2489.0,2488.2,4.01893]
[1730426801866,4.01782,2489.0,2488.3,4.01872]
[1730426802174,4.01782,2489.0,2488.2,4.01893]
[1730426802388,4.01801,2488.8,2488.2,4.01893]
[1730426802584,4.01878,2488.4,2487.9,1.0081]
[1730426802727,7.01709,2489.4,2488.0,4.01918]
[1730426802728,4.01806,2488.8,2488.0,4.01918]
[1730426803055,4.01806,2488.8,2487.5,5.07675]
[1730426803056,4.01908,2488.2,2487.5,5.07675]
[1730426803290,4.01869,2488.4,2486.7,3.6659495]
[1730426803291,4.01962,2487.8,2487.2,4.02046]
[1730426803778,4.01913,2488.1,2487.4,4.02015]
[1730426803951,4.01915,2488.1,2487.4,4.02015]
[1730426804148,7.01822,2488.7,2487.2,4.02053]
[1730426804149,3.0,2488.4,2487.2,4.02053]
[1730426804513,3.0,2488.4,2486.3,4.02201]
[1730426804514,4.02125,2486.8,2486.1,4.02221]
[1730426804849,4.02067,2487.2,2485.9,1.0567]
[1730426805077,4.02067,2487.2,2486.5,4.0216]
[1730426805303,4.01999,2487.6,2486.8,4.0211]
[1730426806252,4.01999,2487.6,2485.9,1.0567]
[1730426806455,4.02031,2487.4,2486.7,4.02126]
[1730426806697,4.02027,2487.4,2486.7,4.02126]
[1730426806853,4.02065,2487.2,2486.3,4.02203]
[1730426807477,4.02065,2487.2,2486.5,4.0216]
[1730426807831,4.02062,2487.2,2486.3,4.02189]
[1730426808113,4.02062,2487.2,2486.5,4.0216]
[1730426808319,4.02032,2487.4,2486.7,4.02127]
[1730426808527,4.02074,2487.2,2486.5,4.02163]
[1730426808726,8.04148,2487.2,2486.5,4.02163]
[1730426808887,4.02074,2487.2,2486.6,4.02153]
[1730426809087,4.02032,2487.4,2486.7,4.02137]
[1730426809280,3.0,2487.4,2486.7,4.02137]
[1730426809492,4.02026,2487.4,2486.7,4.02137]
[1730426809726,4.02135,2486.8,2485.9,5.07931]
[1730426810037,4.02166,2486.6,2485.9,5.0793]
[1730426810338,1.0095,2487.0,2485.9,5.0793]
[1730426810339,5.03049,2487.0,2486.0,4.02252]
[1730426810488,5.03049,2487.0,2486.2,4.02208]
[1730426810683,1.0095,2487.0,2485.9,5.07937]
[1730426810905,1.0095,2487.0,2484.0,2.07736404]
[1730426810906,4.0215,2486.7,2485.3,4.02353]
[1730426811119,4.02107,2486.9,2485.0,1.0541]
[1730426811120,5.09962,2486.2,2485.0,1.0541]
[1730426811321,4.02189,2486.4,2485.7,4.023]
[1730426811821,1.0774,2486.7,2486.1,4.02222]
[1730426812040,4.02128,2486.8,2486.2,0.06673022]
[1730426812337,1.0774,2487.1,2486.5,4.0217]
[1730426812555,4.02026,2487.4,2486.5,4.0217]
[1730426812761,4.02026,2487.4,2486.7,4.02136]
[1730426813050,1.0157,2487.5,2485.9,1.0541]
[1730426813214,4.02116,2486.9,2486.2,4.02218]
[1730426813418,4.02127,2486.8,2486.2,4.02218]
[1730426813812,4.02116,2486.9,2486.2,4.02218]
[1730426814012,4.02123,2486.8,2486.2,4.02218]
[1730426814223,1.035,2486.3,2484.7,1.0475]
[1730426814448,4.02308,2485.7,2485.0,4.02403]
[1730426814603,3.0,2486.0,2485.2,4.0238]
[1730426814801,4.02289,2485.8,2485.2,4.0238]
[1730426815146,4.02249,2486.1,2485.3,4.02351]
[1730426815450,4.02367,2485.3,2484.5,4.02479]
[1730426815603,1.0664,2485.1,2483.7,1.0518]
[1730426815951,1.0664,2484.2,2483.3,4.02682]
[1730426816117,1.0664,2484.2,2482.7,0.005]
[1730426816446,1.0664,2484.2,2483.3,4.02679]
[1730426816447,4.0256,2484.1,2483.3,4.02679]
[1730426816852,1.0664,2484.2,2483.1,1.0822]
[1730426817144,1.0664,2484.2,2483.4,4.02673]
[1730426817351,4.02382,2485.2,2484.0,4.02573]
[1730426817554,4.0249,2484.6,2483.8,4.02606]
[1730426817855,3.0,2485.0,2483.2,4.02693]
[1730426817856,1.0143,2484.4,2483.2,4.02693]
[1730426818011,4.02552,2484.2,2483.5,4.02657]
[1730426818217,1.0143,2484.4,2482.9,4.02754]
[1730426818423,4.02479,2484.6,2483.6,4.02638]
[1730426818636,1.0044,2484.9,2483.6,4.02638]
[1730426818637,4.02528,2484.3,2483.6,4.02638]
[1730426818840,4.02499,2484.5,2483.6,4.02638]
[1730426819048,4.02499,2484.5,2483.1,4.4953802]
[1730426819049,4.02562,2484.1,2483.1,4.4953302]
[1730426819245,4.02545,2484.2,2483.4,4.02661]
[1730426819457,4.02528,2484.3,2483.4,4.02661]
[1730426819458,4.02563,2484.1,2483.4,4.02661]
[1730426819623,4.02563,2484.1,2483.2,4.02704]
[1730426819962,4.02563,2484.1,2483.4,4.02673]
[1730426820164,1.0532,2483.9,2483.2,4.6023802]
[1730426820314,1.0532,2484.5,2483.3,4.0268]
[1730426820517,1.0532,2485.0,2484.2,4.02539]
[1730426820824,4.02453,2484.8,2484.1,4.02558]
[1730426821262,5.07736,2485.0,2484.2,4.02538]
[1730426821425,1.0532,2485.0,2484.0,4.02563]
[1730426821624,4.0246,2484.8,2484.0,4.02563]
[1730426821862,0.02,2485.7,2484.0,4.02563]
[1730426821863,1.0219,2485.5,2485.1,4.02396]
[1730426822167,1.0219,2486.2,2485.1,5.03011]
[1730426822318,4.02243,2486.1,2485.3,4.02349]
[1730426822530,1.0219,2486.2,2485.3,4.02349]
[1730426822728,5.04419,2486.2,2485.3,4.02349]
[1730426823015,4.02275,2485.9,2485.1,5.03017]
[1730426823243,4.02323,2485.6,2484.8,4.02445]
[1730426823465,4.02286,2485.8,2484.8,4.02445]
[1730426823766,1.0219,2486.2,2484.6,0.55]
[1730426823767,4.02248,2486.1,2484.6,0.55]
[1730426823915,1.0169,2486.6,2485.7,4.02286]
[1730426824115,4.02172,2486.5,2485.8,4.02284]
[1730426824420,4.02185,2486.5,2485.0,1.0451]
[1730426824615,1.0169,2486.6,2485.3,0.55]
[1730426824960,0.01,2487.6,2486.4,4.02185]
[1730426824961,5.04235,2487.1,2486.4,4.02185]
[1730426825117,4.02059,2487.2,2486.3,4.02203]
[1730426825429,4.02139,2486.8,2485.9,0.9921]
[1730426825613,4.0209,2487.0,2486.2,4.02209]
[1730426826036,4.02058,2487.2,2486.4,4.02186]
[1730426826435,4.02028,2487.4,2486.2,4.02214]
[1730426826436,4.02026,2487.4,2486.2,4.02214]
[1730426826671,4.02119,2486.9,2486.2,4.02214]
[1730426826856,3.0,2487.3,2486.3,4.02198]
[1730426826857,4.02092,2487.0,2486.3,4.02198]
[1730426827179,4.02092,2487.0,2486.3,4.02202]
[1730426827392,4.02081,2487.1,2485.4,0.9764]
[1730426827393,4.02151,2486.7,2485.4,0.9764]
[1730426827539,4.02022,2487.5,2486.7,4.02132]
[1730426827732,4.02022,2487.5,2485.9,0.9764]
[1730426827733,0.432908,2487.5,2486.9,4.02106]
[1730426827931,4.98825,2487.7,2486.8,1.0145]
[1730426828265,4.01918,2488.1,2487.3,4.02026]
[1730426828581,4.01956,2487.9,2486.9,4.02102]
[1730426828735,1.0445,2488.2,2486.8,1.0145]
[1730426828736,4.02046,2487.3,2486.8,1.0145]
[1730426828936,5.06496,2487.3,2486.2,1.0145]
[1730426829135,4.0214,2486.7,2486.2,1.0145]
[1730426829367,4.02108,2486.9,2486.0,4.02247]
[1730426829601,4.02141,2486.7,2486.0,4.02247]
[1730426830084,5.06493,2487.3,2486.3,4.02189]
[1730426830085,4.02075,2487.1,2486.3,4.02189]
[1730426830281,4.02075,2487.1,2485.9,4.02268]
[1730426830580,1.0445,2487.3,2486.6,4.02143]
[1730426830581,5.06498,2487.3,2486.6,4.02143]
[1730426830791,4.02069,2487.2,2486.4,4.02175]
[1730426831087,4.02076,2487.1,2486.2,4.02216]
[1730426831254,4.02108,2486.9,2486.2,4.0222]
[1730426831678,4.02216,2486.3,2485.8,1.0121]
[1730426831835,1.0445,2487.3,2485.8,1.0121]
[1730426831836,4.02178,2486.5,2485.8,1.0121]
[1730426832187,4.02236,2486.1,2485.3,5.03574]
[1730426832355,4.02266,2486.0,2485.3,1.0121]
[1730426832761,7.99249,2486.4,2485.6,4.02315]
[1730426833076,4.0222,2486.2,2485.5,4.02322]
[1730426833404,4.02224,2486.2,2485.4,4.02337]
[1730426833697,4.02297,2485.8,2485.3,1.0121]
[1730426833920,4.02232,2486.2,2485.3,1.0121]
[1730426834204,4.02204,2486.3,2485.4,4.02349]
[1730426834500,4.02223,2486.2,2485.4,4.02349]
[1730426834999,3.9705,2486.4,2485.5,4.02333]
[1730426835377,4.02204,2486.3,2485.3,5.03574]
[1730426835579,0.9705,2486.4,2485.5,4.02321]